[Event "Norwegian Championship 2022"]
[Site "Kongsvinger, Norway"]
[Date "2022.07.12"]
[Round "5"]
[White "Djurhuus, Rune"]
[Black " Østenstad, Berge"]
[Result "0-1"]
[Board "6"]
[TimeControl "40/5400+30:1800+30"]
[WhiteTitle "GM"]
[BlackTitle "GM"]
[WhiteFideId "1500082"]
[BlackFideId "1500058"]
[WhiteElo "2407"]
[BlackElo "2451"]

1. e4 {[%clk 01:26:33]} {[%emt 00:04:27]} e6 {[%clk 01:30:34]} {[%emt
00:00:27]} 2. Qe2 {[%clk 01:23:27]} {[%emt 00:03:37]} c5 {[%clk 01:30:29]}
{[%emt 00:00:35]} 3. Nf3 {[%clk 01:23:52]} {[%emt 00:00:05]} Nc6 {[%clk
01:30:18]} {[%emt 00:00:40]} 4. g3 {[%clk 01:24:19]} {[%emt 00:00:03]} d6
{[%clk 01:25:15]} {[%emt 00:05:34]} 5. Bg2 {[%clk 01:23:25]} {[%emt 00:01:24]}
Nf6 {[%clk 01:20:48]} {[%emt 00:04:56]} 6. O-O {[%clk 01:23:12]} {[%emt
00:00:43]} Be7 {[%clk 01:21:11]} {[%emt 00:00:08]} 7. b3 {[%clk 01:21:03]}
{[%emt 00:02:39]} O-O {[%clk 01:12:28]} {[%emt 00:09:13]} 8. Bb2 {[%clk
01:21:11]} {[%emt 00:00:23]} e5 {[%clk 01:11:06]} {[%emt 00:01:52]} 9. h3
{[%clk 01:11:15]} {[%emt 00:10:26]} Re8 {[%clk 00:58:11]} {[%emt 00:13:25]} 10.
c4 {[%clk 01:11:39]} {[%emt 00:00:05]} Bf8 {[%clk 00:54:25]} {[%emt 00:04:15]}
11. d3 {[%clk 01:10:30]} {[%emt 00:01:40]} g6 {[%clk 00:51:21]} {[%emt
00:03:33]} 12. Nc3 {[%clk 01:10:32]} {[%emt 00:00:28]} Bg7 {[%clk 00:51:19]}
{[%emt 00:00:33]} 13. Qd2 {[%clk 01:02:31]} {[%emt 00:08:31]} a6 {[%clk
00:50:11]} {[%emt 00:01:39]} 14. a3 {[%clk 01:02:01]} {[%emt 00:00:59]} b5
{[%clk 00:46:37]} {[%emt 00:04:03]} 15. Nd5 {[%clk 01:00:47]} {[%emt 00:01:44]}
Rb8 {[%clk 00:45:06]} {[%emt 00:02:02]} 16. Bc3 {[%clk 00:55:57]} {[%emt
00:05:20]} a5 {[%clk 00:38:03]} {[%emt 00:07:34]} 17. a4 {[%clk 00:55:56]}
{[%emt 00:00:31]} bxc4 {[%clk 00:37:19]} {[%emt 00:01:14]} 18. bxc4 {[%clk
00:56:22]} {[%emt 00:00:03]} Nxd5 {[%clk 00:36:42]} {[%emt 00:01:07]} 19. exd5
{[%clk 00:46:28]} {[%emt 00:10:25]} Nb4 {[%clk 00:36:44]} {[%emt 00:00:27]} 20.
Ne1 {[%clk 00:42:38]} {[%emt 00:04:20]} f5 {[%clk 00:28:44]} {[%emt 00:08:29]}
21. Nf3 {[%clk 00:40:32]} {[%emt 00:02:37]} Bf6 {[%clk 00:17:50]} {[%emt
00:11:23]} 22. h4 {[%clk 00:40:59]} {[%emt 00:00:04]} Rf8 {[%clk 00:12:27]}
{[%emt 00:05:53]} 23. Rfe1 {[%clk 00:35:18]} {[%emt 00:06:11]} Rb7 {[%clk
00:11:50]} {[%emt 00:01:07]} 24. Re2 {[%clk 00:34:34]} {[%emt 00:01:14]} Rbf7
{[%clk 00:11:26]} {[%emt 00:00:53]} 25. Bh3 {[%clk 00:30:43]} {[%emt 00:04:21]}
Re8 {[%clk 00:09:43]} {[%emt 00:02:13]} 26. Ne1 {[%clk 00:28:00]} {[%emt
00:03:14]} Bd7 {[%clk 00:08:05]} {[%emt 00:02:08]} 27. Ng2 {[%clk 00:26:27]}
{[%emt 00:02:02]} Bg7 {[%clk 00:04:17]} {[%emt 00:04:18]} 28. f3 {[%clk
00:22:16]} {[%emt 00:04:42]} Rfe7 {[%clk 00:03:34]} {[%emt 00:01:13]} 29. Kh2
{[%clk 00:21:58]} {[%emt 00:00:48]} h6 {[%clk 00:03:40]} {[%emt 00:00:25]} 30.
Rf2 {[%clk 00:12:12]} {[%emt 00:10:15]} Rf7 {[%clk 00:03:24]} {[%emt 00:00:46]}
31. f4 {[%clk 00:10:56]} {[%emt 00:01:46]} e4 {[%clk 00:03:25]} {[%emt
00:00:30]} 32. Bxg7 {[%clk 00:09:32]} {[%emt 00:01:53]} Kxg7 {[%clk 00:03:42]}
{[%emt 00:00:13]} 33. d4 {[%clk 00:09:14]} {[%emt 00:00:48]} Qf6 {[%clk
00:03:18]} {[%emt 00:00:54]} 34. Rd1 {[%clk 00:08:49]} {[%emt 00:00:55]} Bxa4
{[%clk 00:03:18]} {[%emt 00:00:30]} 35. dxc5 {[%clk 00:09:05]} {[%emt
00:00:14]} Bxd1 {[%clk 00:03:41]} {[%emt 00:00:07]} 36. Qxd1 {[%clk 00:09:18]}
{[%emt 00:00:17]} dxc5 {[%clk 00:03:35]} {[%emt 00:00:36]} 37. h5 {[%clk
00:06:52]} {[%emt 00:02:56]} Nd3 {[%clk 00:02:50]} {[%emt 00:01:15]} 38. Ra2
{[%clk 00:06:55]} {[%emt 00:00:27]} g5 {[%clk 00:03:12]} {[%emt 00:00:08]} 39.
Ne3 {[%clk 00:06:29]} {[%emt 00:00:56]} g4 {[%clk 00:03:06]} {[%emt 00:00:36]}
40. Bf1 {[%clk 00:34:50]} {[%emt 00:02:09]} Rfe7 {[%clk 00:31:17]} {[%emt
00:02:17]} 41. Rxa5 {[%clk 00:32:44]} {[%emt 00:02:38]} Qf7 {[%clk 00:22:37]}
{[%emt 00:09:09]} 42. Kg1 {[%clk 00:31:35]} {[%emt 00:01:39]} Qxh5 {[%clk
00:22:13]} {[%emt 00:00:54]} 43. d6 {[%clk 00:31:27]} {[%emt 00:00:38]} Rb7
{[%clk 00:17:40]} {[%emt 00:05:03]} 44. Bxd3 {[%clk 00:31:50]} {[%emt
00:00:08]} exd3 {[%clk 00:18:03]} {[%emt 00:00:07]} 45. Qxd3 {[%clk 00:32:14]}
{[%emt 00:00:05]} Rxe3 {[%clk 00:18:02]} {[%emt 00:00:31]} 46. Qxe3 {[%clk
00:30:05]} {[%emt 00:02:39]} Rb1+ {[%clk 00:18:26]} {[%emt 00:00:06]} 47. Kf2
{[%clk 00:30:32]} {[%emt 00:00:04]} Qh2# {[%clk 00:18:51]} {[%emt 00:00:43]}
0-1

[Event "Norwegian Championship 2022"]
[Site "Kongsvinger, Norway"]
[Date "2022.07.12"]
[Round "5"]
[White "Vestby-Ellingsen, Mads"]
[Black "Sjøberg, Isak"]
[Result "1-0"]
[Board "7"]
[TimeControl "40/5400+30:1800+30"]
[WhiteTitle "IM"]
[BlackTitle "FM"]
[WhiteFideId "1520857"]
[BlackFideId "1521640"]
[WhiteElo "2351"]
[BlackElo "2308"]

1. d4 {[%clk 01:30:54]} {[%emt 00:00:04]} Nf6 {[%clk 01:30:26]} {[%emt
00:00:36]} 2. Nc3 {[%clk 01:31:08]} {[%emt 00:00:15]} d5 {[%clk 01:30:51]}
{[%emt 00:00:05]} 3. Bf4 {[%clk 01:31:23]} {[%emt 00:00:14]} g6 {[%clk
01:28:50]} {[%emt 00:02:33]} 4. e3 {[%clk 01:30:36]} {[%emt 00:01:16]} Bg7
{[%clk 01:29:16]} {[%emt 00:00:05]} 5. Nb5 {[%clk 01:30:25]} {[%emt 00:00:40]}
Na6 {[%clk 01:27:28]} {[%emt 00:02:17]} 6. h3 {[%clk 01:30:33]} {[%emt
00:00:21]} c6 {[%clk 01:23:28]} {[%emt 00:04:32]} 7. Nc3 {[%clk 01:30:45]}
{[%emt 00:00:17]} O-O {[%clk 01:23:15]} {[%emt 00:00:43]} 8. Nf3 {[%clk
01:30:22]} {[%emt 00:00:52]} Qa5 {[%clk 01:07:52]} {[%emt 00:15:55]} 9. Be2
{[%clk 01:29:31]} {[%emt 00:01:20]} Ne4 {[%clk 01:06:44]} {[%emt 00:01:39]} 10.
O-O {[%clk 01:29:44]} {[%emt 00:00:16]} Nxc3 {[%clk 01:07:07]} {[%emt
00:00:08]} 11. bxc3 {[%clk 01:30:05]} {[%emt 00:00:09]} Qxc3 {[%clk 01:04:51]}
{[%emt 00:02:47]} 12. Rb1 {[%clk 01:30:19]} {[%emt 00:00:15]} Qa5 {[%clk
00:55:31]} {[%emt 00:09:52]} 13. c4 {[%clk 01:30:07]} {[%emt 00:00:41]} dxc4
{[%clk 00:49:34]} {[%emt 00:06:27]} 14. Bxc4 {[%clk 01:30:16]} {[%emt
00:00:20]} Nc7 {[%clk 00:46:53]} {[%emt 00:03:12]} 15. Bg3 {[%clk 01:17:05]}
{[%emt 00:13:41]} b5 {[%clk 00:39:54]} {[%emt 00:07:30]} 16. Bb3 {[%clk
01:12:35]} {[%emt 00:04:59]} Nd5 {[%clk 00:35:06]} {[%emt 00:05:19]} 17. Rc1
{[%clk 00:45:46]} {[%emt 00:27:19]} Nc3 {[%clk 00:33:14]} {[%emt 00:02:22]} 18.
Qd2 {[%clk 00:43:40]} {[%emt 00:02:36]} b4 {[%clk 00:33:39]} {[%emt 00:00:06]}
19. Be5 {[%clk 00:43:58]} {[%emt 00:00:11]} Ba6 {[%clk 00:31:21]} {[%emt
00:02:49]} 20. Rfe1 {[%clk 00:43:59]} {[%emt 00:00:28]} Rad8 {[%clk 00:29:45]}
{[%emt 00:02:07]} 21. Bxg7 {[%clk 00:42:34]} {[%emt 00:01:55]} Kxg7 {[%clk
00:30:01]} {[%emt 00:00:14]} 22. Qb2 {[%clk 00:41:58]} {[%emt 00:01:06]} f6
{[%clk 00:24:18]} {[%emt 00:06:14]} 23. a3 {[%clk 00:37:01]} {[%emt 00:05:27]}
Nd5 {[%clk 00:21:55]} {[%emt 00:02:53]} 24. Qd2 {[%clk 00:31:50]} {[%emt
00:05:41]} Qxa3 {[%clk 00:20:31]} {[%emt 00:01:54]} 25. Bxd5 {[%clk 00:32:05]}
{[%emt 00:00:15]} cxd5 {[%clk 00:20:53]} {[%emt 00:00:09]} 26. Ra1 {[%clk
00:32:10]} {[%emt 00:00:24]} Qd3 {[%clk 00:21:19]} {[%emt 00:00:04]} 27. Qxb4
{[%clk 00:32:23]} {[%emt 00:00:17]} Rd7 {[%clk 00:20:17]} {[%emt 00:01:32]} 28.
Ra5 {[%clk 00:26:58]} {[%emt 00:05:56]} Bc4 {[%clk 00:12:58]} {[%emt 00:07:50]}
29. Qa4 {[%clk 00:23:14]} {[%emt 00:04:13]} Rfd8 {[%clk 00:13:15]} {[%emt
00:00:13]} 30. Rxa7 {[%clk 00:22:49]} {[%emt 00:00:54]} Bb5 {[%clk 00:13:20]}
{[%emt 00:00:25]} 31. Qa5 {[%clk 00:22:22]} {[%emt 00:00:57]} Bc4 {[%clk
00:08:03]} {[%emt 00:05:48]} 32. Rxd7 {[%clk 00:21:14]} {[%emt 00:01:37]} Rxd7
{[%clk 00:08:29]} {[%emt 00:00:04]} 33. Qa8 {[%clk 00:21:19]} {[%emt 00:00:25]}
Qb3 {[%clk 00:06:08]} {[%emt 00:02:52]} 34. Ra1 {[%clk 00:20:13]} {[%emt
00:01:36]} Qb2 {[%clk 00:06:05]} {[%emt 00:00:33]} 35. Ra5 {[%clk 00:10:11]}
{[%emt 00:10:31]} Qb1+ {[%clk 00:05:12]} {[%emt 00:01:22]} 36. Kh2 {[%clk
00:10:34]} {[%emt 00:00:07]} Qb7 {[%clk 00:05:19]} {[%emt 00:00:24]} 37. Qxb7
{[%clk 00:04:53]} {[%emt 00:06:12]} Rxb7 {[%clk 00:05:47]} {[%emt 00:00:01]} 38.
Kg3 {[%clk 00:03:55]} {[%emt 00:01:28]} Rb2 {[%clk 00:05:21]} {[%emt 00:00:56]}
39. Rc5 {[%clk 00:01:32]} {[%emt 00:02:53]} Kf7 {[%clk 00:04:22]} {[%emt
00:01:28]} 40. h4 {[%clk 00:30:47]} {[%emt 00:01:15]} h5 {[%clk 00:32:06]}
{[%emt 00:02:46]} 41. Ng1 {[%clk 00:24:28]} {[%emt 00:06:49]} g5 {[%clk
00:19:11]} {[%emt 00:13:26]} 42. Nh3 {[%clk 00:22:58]} {[%emt 00:02:00]} Kg6
{[%clk 00:18:12]} {[%emt 00:01:30]} 43. Rc7 {[%clk 00:22:57]} {[%emt 00:00:30]}
e6 {[%clk 00:17:48]} {[%emt 00:00:55]} 44. Rc6 {[%clk 00:16:13]} {[%emt
00:07:13]} Kf5 {[%clk 00:16:12]} {[%emt 00:02:05]} 45. Rc8 {[%clk 00:13:47]}
{[%emt 00:02:57]} gxh4+ {[%clk 00:09:15]} {[%emt 00:07:27]} 46. Kxh4 {[%clk
00:14:06]} {[%emt 00:00:10]} Bf1 {[%clk 00:08:10]} {[%emt 00:01:35]} 47. Rg8
{[%clk 00:07:53]} {[%emt 00:06:44]} Be2 {[%clk 00:05:17]} {[%emt 00:03:24]} 48.
Nf4 {[%clk 00:06:54]} {[%emt 00:01:28]} e5 {[%clk 00:02:32]} {[%emt 00:03:15]}
49. dxe5 {[%clk 00:06:14]} {[%emt 00:01:10]} fxe5 {[%clk 00:01:30]} {[%emt
00:01:32]} 50. Rg5+ {[%clk 00:04:56]} {[%emt 00:01:47]} Ke4 {[%clk 00:01:32]}
{[%emt 00:00:29]} 51. Ng6 {[%clk 00:05:16]} {[%emt 00:00:10]} Kd3 {[%clk
00:00:34]} {[%emt 00:01:29]} 52. Rxe5 {[%clk 00:05:27]} {[%emt 00:00:19]} Bf1
{[%clk 00:00:34]} {[%emt 00:00:30]} 53. Rxd5+ {[%clk 00:04:32]} {[%emt
00:01:24]} Ke2 {[%clk 00:00:56]} {[%emt 00:00:09]} 54. Kg3 {[%clk 00:04:40]}
{[%emt 00:00:21]} Ke1 {[%clk 00:01:11]} {[%emt 00:00:15]} 55. Ra5 {[%clk
00:04:37]} {[%emt 00:00:33]} Bd3 {[%clk 00:00:44]} {[%emt 00:00:57]} 56. Ra1+
{[%clk 00:04:13]} {[%emt 00:00:53]} Bb1 {[%clk 00:01:08]} {[%emt 00:00:06]} 57.
Nh4 {[%clk 00:04:05]} {[%emt 00:00:38]} Ke2 {[%clk 00:01:23]} {[%emt 00:00:16]}
58. Nf3 {[%clk 00:03:43]} {[%emt 00:00:51]} Rb8 {[%clk 00:01:24]} {[%emt
00:00:29]} 59. Nd4+ {[%clk 00:02:19]} {[%emt 00:01:54]} Kd2 {[%clk 00:01:36]}
{[%emt 00:00:17]} 60. Ne6 {[%clk 00:01:38]} {[%emt 00:01:13]} Rg8+ {[%clk
00:01:44]} {[%emt 00:00:22]} 61. Kh2 {[%clk 00:01:23]} {[%emt 00:00:44]} Bf5
{[%clk 00:01:13]} {[%emt 00:01:02]} 62. Ra2+ {[%clk 00:01:14]} {[%emt
00:00:40]} Ke1 {[%clk 00:01:23]} {[%emt 00:00:20]} 63. Nd4 {[%clk 00:01:09]}
{[%emt 00:00:35]} Bd3 {[%clk 00:00:58]} {[%emt 00:00:55]} 64. Kg1 {[%clk
00:00:45]} {[%emt 00:00:54]} Kd1 {[%clk 00:00:34]} {[%emt 00:00:54]} 65. Ra1+
{[%clk 00:00:37]} {[%emt 00:00:39]} Kd2 {[%clk 00:01:02]} {[%emt 00:00:02]} 66.
Nf3+ {[%clk 00:00:43]} {[%emt 00:00:23]} Kc3 {[%clk 00:01:28]} {[%emt
00:00:05]} 67. Rc1+ {[%clk 00:01:03]} {[%emt 00:00:10]} Kb2 {[%clk 00:01:41]}
{[%emt 00:00:14]} 68. Rc5 {[%clk 00:01:10]} {[%emt 00:00:26]} Be4 {[%clk
00:01:44]} {[%emt 00:00:27]} 69. Nh4 {[%clk 00:00:50]} {[%emt 00:00:49]} Rh8
{[%clk 00:01:51]} {[%emt 00:00:25]} 70. f3 {[%clk 00:01:11]} {[%emt 00:00:09]}
Bc2 {[%clk 00:02:05]} {[%emt 00:00:16]} 71. Kf2 {[%clk 00:01:32]} {[%emt
00:00:09]} Kc1 {[%clk 00:02:31]} {[%emt 00:00:05]} 72. e4 {[%clk 00:01:06]}
{[%emt 00:00:55]} Kd2 {[%clk 00:02:50]} {[%emt 00:00:12]} 73. Rd5+ {[%clk
00:01:26]} {[%emt 00:00:09]} Bd3 {[%clk 00:03:06]} {[%emt 00:00:14]} 74. Ng6
{[%clk 00:01:44]} {[%emt 00:00:11]} 1-0

[Event "Norwegian Championship 2022"]
[Site "Kongsvinger, Norway"]
[Date "2022.07.13"]
[Round "6"]
[White "Hauge, Lars Oskar"]
[Black "Agdestein, Simen"]
[Result "1/2-1/2"]
[Board "1"]
[TimeControl "40/5400+30:1800+30"]
[WhiteTitle "GM"]
[BlackTitle "GM"]
[WhiteFideId "1509276"]
[BlackFideId "1500015"]
[WhiteElo "2526"]
[BlackElo "2559"]

1. e4 {[%clk 01:30:53]} {[%emt 00:00:06]} c5 {[%clk 01:30:56]} {[%emt
00:00:04]} 2. Nf3 {[%clk 01:31:20]} {[%emt 00:00:03]} Nc6 {[%clk 01:30:58]}
{[%emt 00:00:28]} 3. d4 {[%clk 01:31:46]} {[%emt 00:00:05]} cxd4 {[%clk
01:30:37]} {[%emt 00:00:51]} 4. Nxd4 {[%clk 01:32:12]} {[%emt 00:00:04]} Nf6
{[%clk 01:29:45]} {[%emt 00:01:22]} 5. Nc3 {[%clk 01:32:20]} {[%emt 00:00:22]}
d6 {[%clk 01:29:32]} {[%emt 00:00:42]} 6. Bg5 {[%clk 01:31:47]} {[%emt
00:01:03]} e6 {[%clk 01:23:38]} {[%emt 00:06:24]} 7. Qd3 {[%clk 01:31:10]}
{[%emt 00:01:07]} a6 {[%clk 01:17:02]} {[%emt 00:07:07]} 8. O-O-O {[%clk
01:28:55]} {[%emt 00:02:44]} Qa5 {[%clk 01:15:12]} {[%emt 00:02:20]} 9. Bxf6
{[%clk 01:22:25]} {[%emt 00:07:00]} gxf6 {[%clk 01:15:39]} {[%emt 00:00:04]} 10.
Nb3 {[%clk 01:10:28]} {[%emt 00:12:26]} Qc7 {[%clk 01:12:08]} {[%emt 00:04:00]}
11. f4 {[%clk 01:07:56]} {[%emt 00:03:03]} b5 {[%clk 01:07:28]} {[%emt
00:05:11]} 12. g3 {[%clk 01:04:11]} {[%emt 00:04:15]} Bb7 {[%clk 00:56:34]}
{[%emt 00:11:24]} 13. Bh3 {[%clk 01:04:13]} {[%emt 00:00:27]} b4 {[%clk
00:51:01]} {[%emt 00:06:03]} 14. Ne2 {[%clk 01:02:12]} {[%emt 00:02:31]} a5
{[%clk 00:43:13]} {[%emt 00:08:18]} 15. Nbd4 {[%clk 01:01:01]} {[%emt
00:01:40]} Nxd4 {[%clk 00:42:53]} {[%emt 00:00:51]} 16. Nxd4 {[%clk 01:01:22]}
{[%emt 00:00:10]} Qb6 {[%clk 00:40:12]} {[%emt 00:03:11]} 17. Nxe6 {[%clk
00:43:07]} {[%emt 00:18:45]} fxe6 {[%clk 00:39:56]} {[%emt 00:00:45]} 18. Bxe6
{[%clk 00:43:22]} {[%emt 00:00:14]} Kd8 {[%clk 00:35:01]} {[%emt 00:05:25]} 19.
Qe2 {[%clk 00:34:25]} {[%emt 00:09:27]} h5 {[%clk 00:31:01]} {[%emt 00:04:29]}
20. Bd5 {[%clk 00:33:08]} {[%emt 00:01:47]} Ba6 {[%clk 00:28:11]} {[%emt
00:03:21]} 21. Qf3 {[%clk 00:31:04]} {[%emt 00:02:34]} Rc8 {[%clk 00:27:28]}
{[%emt 00:01:13]} 22. e5 {[%clk 00:29:54]} {[%emt 00:01:40]} Qc5 {[%clk
00:25:43]} {[%emt 00:02:14]} 23. Bb3 {[%clk 00:25:48]} {[%emt 00:04:36]} fxe5
{[%clk 00:21:18]} {[%emt 00:04:55]} 24. fxe5 {[%clk 00:26:04]} {[%emt
00:00:14]} Qxe5 {[%clk 00:19:12]} {[%emt 00:02:37]} 25. Rhe1 {[%clk 00:26:08]}
{[%emt 00:00:25]} Qg5+ {[%clk 00:14:28]} {[%emt 00:05:14]} 26. Kb1 {[%clk
00:26:31]} {[%emt 00:00:07]} Be7 {[%clk 00:10:10]} {[%emt 00:04:48]} 27. h4
{[%clk 00:26:53]} {[%emt 00:00:08]} Qg7 {[%clk 00:06:57]} {[%emt 00:03:42]} 28.
Qd5 {[%clk 00:26:07]} {[%emt 00:01:17]} Rc7 {[%clk 00:06:16]} {[%emt 00:01:11]}
29. Qxa5 {[%clk 00:25:43]} {[%emt 00:00:54]} Bb7 {[%clk 00:06:01]} {[%emt
00:00:45]} 30. Bd5 {[%clk 00:18:18]} {[%emt 00:07:56]} Bxd5 {[%clk 00:02:25]}
{[%emt 00:04:06]} 31. Qxd5 {[%clk 00:18:41]} {[%emt 00:00:07]} Rh6 {[%clk
00:01:19]} {[%emt 00:01:36]} 32. Re4 {[%clk 00:17:20]} {[%emt 00:01:51]} Qxg3
{[%clk 00:00:47]} {[%emt 00:01:02]} 33. Rxb4 {[%clk 00:15:22]} {[%emt
00:02:28]} Qf2 {[%clk 00:01:03]} {[%emt 00:00:13]} 34. Rb8+ {[%clk 00:14:18]}
{[%emt 00:01:34]} Kd7 {[%clk 00:01:06]} {[%emt 00:00:27]} 35. Qb5+ {[%clk
00:14:32]} {[%emt 00:00:16]} Ke6 {[%clk 00:01:26]} {[%emt 00:00:10]} 36. Qb3+
{[%clk 00:14:56]} {[%emt 00:00:06]} Kf6 {[%clk 00:01:05]} {[%emt 00:00:51]} 37.
Rg8 {[%clk 00:06:07]} {[%emt 00:09:18]} Rg6 {[%clk 00:01:01]} {[%emt 00:00:34]}
38. Rxg6+ {[%clk 00:05:53]} {[%emt 00:00:44]} Kxg6 {[%clk 00:01:29]} {[%emt
00:00:02]} 39. Qd3+ {[%clk 00:06:17]} {[%emt 00:00:06]} Kh6 {[%clk 00:00:54]}
{[%emt 00:01:05]} 40. Rf1 {[%clk 00:36:05]} {[%emt 00:00:41]} Qxh4 {[%clk
00:30:44]} {[%emt 00:00:40]} 41. Rg1 {[%clk 00:26:26]} {[%emt 00:10:09]} Qf6
{[%clk 00:29:37]} {[%emt 00:01:37]} 42. Qd2+ {[%clk 00:25:27]} {[%emt
00:01:29]} Kh7 {[%clk 00:29:58]} {[%emt 00:00:09]} 43. Qd3+ {[%clk 00:25:48]}
{[%emt 00:00:09]} Kh6 {[%clk 00:27:41]} {[%emt 00:02:47]} 44. Qd2+ {[%clk
00:25:31]} {[%emt 00:00:47]} Kh7 {[%clk 00:28:08]} {[%emt 00:00:04]} 45. Qd3+
{[%clk 00:25:55]} {[%emt 00:00:06]} Kh6 {[%clk 00:26:11]} {[%emt 00:02:27]}
1/2-1/2

[Event "Norwegian Championship 2022"]
[Site "Kongsvinger, Norway"]
[Date "2022.07.13"]
[Round "6"]
[White "Abdrlauf, Elham"]
[Black "Kaasen, Tor Fredrik"]
[Result "0-1"]
[Board "2"]
[TimeControl "40/5400+30:1800+30"]
[WhiteTitle "FM"]
[BlackTitle "IM"]
[WhiteFideId "1533533"]
[BlackFideId "1516647"]
[WhiteElo "2466"]
[BlackElo "2433"]

1. Nf3 {[%clk 01:28:43]} {[%emt 00:02:16]} d5 {[%clk 01:30:36]} {[%emt
00:00:23]} 2. c4 {[%clk 01:28:43]} {[%emt 00:00:31]} e6 {[%clk 01:29:56]}
{[%emt 00:01:10]} 3. e3 {[%clk 01:28:07]} {[%emt 00:01:07]} Nf6 {[%clk
01:30:01]} {[%emt 00:00:24]} 4. Nc3 {[%clk 01:28:30]} {[%emt 00:00:08]} Bd6
{[%clk 01:28:46]} {[%emt 00:01:42]} 5. b3 {[%clk 01:26:24]} {[%emt 00:02:39]}
b6 {[%clk 01:28:21]} {[%emt 00:00:54]} 6. cxd5 {[%clk 01:25:32]} {[%emt
00:01:24]} exd5 {[%clk 01:28:03]} {[%emt 00:00:45]} 7. Bb2 {[%clk 01:23:28]}
{[%emt 00:02:36]} O-O {[%clk 01:25:35]} {[%emt 00:02:55]} 8. Be2 {[%clk
01:20:58]} {[%emt 00:03:00]} c5 {[%clk 01:20:13]} {[%emt 00:05:53]} 9. d4
{[%clk 01:18:16]} {[%emt 00:03:14]} Bb7 {[%clk 01:18:48]} {[%emt 00:01:52]} 10.
O-O {[%clk 01:16:39]} {[%emt 00:02:09]} Nbd7 {[%clk 01:17:27]} {[%emt
00:01:51]} 11. Nb5 {[%clk 00:59:35]} {[%emt 00:17:34]} Bb8 {[%clk 01:11:28]}
{[%emt 00:06:31]} 12. Rc1 {[%clk 00:59:04]} {[%emt 00:01:00]} Re8 {[%clk
01:09:00]} {[%emt 00:02:56]} 13. dxc5 {[%clk 00:54:56]} {[%emt 00:04:40]} bxc5
{[%clk 01:06:56]} {[%emt 00:02:33]} 14. b4 {[%clk 00:55:25]} {[%emt 00:00:03]}
cxb4 {[%clk 01:00:11]} {[%emt 00:07:15]} 15. Nbd4 {[%clk 00:48:18]} {[%emt
00:07:37]} Bd6 {[%clk 00:53:53]} {[%emt 00:06:47]} 16. Nf5 {[%clk 00:42:01]}
{[%emt 00:06:47]} Bf8 {[%clk 00:51:45]} {[%emt 00:02:37]} 17. Bb5 {[%clk
00:42:29]} {[%emt 00:00:04]} Re6 {[%clk 00:48:27]} {[%emt 00:03:45]} 18. N3d4
{[%clk 00:34:07]} {[%emt 00:08:55]} Rb6 {[%clk 00:47:58]} {[%emt 00:00:58]} 19.
Qf3 {[%clk 00:24:40]} {[%emt 00:09:58]} Nc5 {[%clk 00:37:14]} {[%emt 00:11:12]}
20. Qg3 {[%clk 00:15:14]} {[%emt 00:09:57]} Nfe4 {[%clk 00:34:32]} {[%emt
00:03:11]} 21. Qf4 {[%clk 00:15:41]} {[%emt 00:00:04]} Qg5 {[%clk 00:28:13]}
{[%emt 00:06:49]} 22. Qe5 {[%clk 00:15:40]} {[%emt 00:00:31]} Rg6 {[%clk
00:21:11]} {[%emt 00:07:31]} 23. g3 {[%clk 00:15:18]} {[%emt 00:00:52]} Bd6
{[%clk 00:14:01]} {[%emt 00:07:39]} 24. h4 {[%clk 00:15:45]} {[%emt 00:00:03]}
Bxe5 {[%clk 00:13:49]} {[%emt 00:00:43]} 25. hxg5 {[%clk 00:16:12]} {[%emt
00:00:02]} Rxg5 {[%clk 00:13:51]} {[%emt 00:00:28]} 26. Ba1 {[%clk 00:14:24]}
{[%emt 00:02:18]} Bf6 {[%clk 00:11:31]} {[%emt 00:02:50]} 27. f4 {[%clk
00:12:04]} {[%emt 00:02:50]} Rg6 {[%clk 00:10:39]} {[%emt 00:01:22]} 28. Kg2
{[%clk 00:09:05]} {[%emt 00:03:29]} h5 {[%clk 00:09:12]} {[%emt 00:01:58]} 29.
Nf3 {[%clk 00:08:36]} {[%emt 00:00:59]} Bc8 {[%clk 00:07:48]} {[%emt 00:01:53]}
30. Bxf6 {[%clk 00:08:30]} {[%emt 00:00:36]} Bxf5 {[%clk 00:07:17]} {[%emt
00:01:01]} 31. Bh4 {[%clk 00:08:58]} {[%emt 00:00:03]} Rb6 {[%clk 00:06:25]}
{[%emt 00:01:21]} 32. Nd4 {[%clk 00:09:08]} {[%emt 00:00:22]} Nc3 {[%clk
00:05:34]} {[%emt 00:01:21]} 33. Nxf5 {[%clk 00:08:28]} {[%emt 00:01:11]} Rxb5
{[%clk 00:05:53]} {[%emt 00:00:10]} 34. Be7 {[%clk 00:08:23]} {[%emt 00:00:34]}
N5e4 {[%clk 00:04:45]} {[%emt 00:01:37]} 35. Rc2 {[%clk 00:05:17]} {[%emt
00:03:38]} Re8 {[%clk 00:04:51]} {[%emt 00:00:24]} 36. Bh4 {[%clk 00:04:04]}
{[%emt 00:01:44]} f6 {[%clk 00:04:04]} {[%emt 00:01:17]} 37. g4 {[%clk
00:04:16]} {[%emt 00:00:17]} hxg4 {[%clk 00:04:16]} {[%emt 00:00:18]} 38. Ra1
{[%clk 00:04:31]} {[%emt 00:00:17]} Kf7 {[%clk 00:03:11]} {[%emt 00:01:34]} 39.
Be1 {[%clk 00:04:49]} {[%emt 00:00:11]} Rc8 {[%clk 00:03:05]} {[%emt 00:00:35]}
40. a3 {[%clk 00:33:16]} {[%emt 00:02:04]} b3 {[%clk 00:30:43]} {[%emt
00:02:52]} 41. Rxc3 {[%clk 00:33:32]} {[%emt 00:00:15]} b2 {[%clk 00:25:44]}
{[%emt 00:05:28]} 42. Rb1 {[%clk 00:31:13]} {[%emt 00:02:48]} Rxc3 {[%clk
00:25:37]} {[%emt 00:00:39]} 43. Nd6+ {[%clk 00:31:23]} {[%emt 00:00:20]} Nxd6
{[%clk 00:26:00]} {[%emt 00:00:07]} 44. Bxc3 {[%clk 00:31:49]} {[%emt
00:00:04]} Nc4 {[%clk 00:26:19]} {[%emt 00:00:10]} 0-1